[Event "LEM Niedersachsen-Meister 2025"]
[Site "Verden"]
[Date "2025.01.05"]
[Round "7.1"]
[White "Nechitaylo, Nikita"]
[Black "Polster, Christian"]
[Result "1/2-1/2"]
[ECO "B52"]
[WhiteElo "2239"]
[BlackElo "2252"]
[Annotator "TA"]
[PlyCount "55"]
[EventDate "2024.12.27"]
[EventType "swiss"]
[EventCountry "GER"]
[SourceTitle "playchess.com"]
[Source "ChessBase"]
[SourceQuality "1"]
[TimeControl "40/5400+30:1800+30"]

{[%evp 16,55,22,21,29,24,24,11,34,20,39,32,36,44,55,42,87,29,27,0,43,13,29,0,47,41,64,46,46,23,89,61,72,0,43,20,55,52,50,0,0,-27]} 1. e4 {[%emt 0:00:01]} c5 {[%emt 0:00:11]} 2. Nf3 {[%emt 0:00:04]} d6 {[%emt 0:00:18]} 3. Bb5+ {[%emt 0:00:03]} Bd7 {[%emt 0:02:51]} 4. c4 {[%emt 0:00:17]} Nf6 {[%emt 0:01:48]} 5. Nc3 {[%emt 0:00:06]} g6 {[%emt 0:00:35]} 6. O-O {[%emt 0:00:04]} Bg7 {[%emt 0:00:07]} 7. Bxd7+ {[%emt 0:00:05]} Qxd7 {[%emt 0:02:49]} 8. d4 {[%emt 0:00:05]} cxd4 {[%emt 0:01:11]} 9. Qxd4 {[%emt 0:00:04]} Nc6 {[%emt 0:00:36]} 10. Qd3 {[%emt 0:00:05]} O-O {[%emt 0:01:24]} 11. Bd2 {[%emt 0:00:24]} Ng4 {[%emt 0:14:04]} 12. Rad1 {[%emt 0:07:32]} Nge5 {[%emt 0:12:48]} 13. Nxe5 {[%emt 0:00:08]} Nxe5 {[%emt 0:00:15]} 14. Qe2 {[%emt 0:00:08]} Rac8 {[%emt 0:10:18]} 15. b3 {[%emt 0:00:10]} Rfe8 {[%emt 0:01:09]} 16. Nd5 {[%emt 0:06:03]} (16. f4 $16 Nc6 17. f5) 16... e6 $11 {[%emt 0:05:31]} 17. Ne3 {[%emt 0:05:17]} Nc6 {[%emt 0:01:28]} 18. Qd3 {[%emt 0:02:26]} Ne5 {[%emt 0:05:53]} 19. Qe2 {[%emt 0:06:05]} Nc6 {[%emt 0:00:16][%cal Ob7b5]} 20. Bc1 {[%emt 0:09:45]} Qe7 {[%emt 0:07:25]} 21. Ba3 {[%emt 0:01:21]} Red8 {[%emt 0:00:32][%cal Ob7b5]} 22. Rd3 {[%emt 0:05:26]} Rd7 {[%emt 0:06:27]} (22... Bd4 $1 $11) 23. Rfd1 {[%emt 0:01:04][%cal Ra3d6]} Rcd8 {[%emt 0:02:54]} 24. Qd2 {[%emt 0:04:21]} (24. f4 $16) 24... Qg5 {[%emt 0:02:36]} 25. Nc2 {[%emt 0:05:15]} (25. Bxd6 $2 {perishes.} Ne5 26. Nd5 Nf3+ (26... Qxd2 $2 27. R3xd2 exd5 28. Rxd5 $19) 27. Rxf3 Qxd2 28. Rxd2 Rxd6 $19 (28... exd5 29. Bb4 $15)) ({Don't play} 25. Rxd6 Nd4 26. Rxd7 Rxd7 $11 (26... Nf3+ 27. Kh1 $18)) 25... Qxd2 {[%emt 0:05:05]} 26. R3xd2 {[%emt 0:00:41]} Bf8 {[%emt 0:00:16] [#]} 27. c5 {[%emt 0:00:12]} d5 {[%emt 0:00:34]} 28. Ne3 {[%emt 0:06:37] Weighted Error Value: White=0.23 (precise) /Black=0.21 (precise) .  Mistake:       	White=3     	Black=1      Inaccurate:     	White=4     	Black=4      OK:         	White=4     	Black=6      Best:        	---       	Black=1} 1/2-1/2

[Event "LEM Niedersachsen-Meister 2025"]
[Site "Verden"]
[Date "2025.01.05"]
[Round "7.2"]
[White "von Mettenheim, Johannes"]
[Black "Hampel, Felix"]
[Result "1-0"]
[ECO "E97"]
[WhiteElo "2333"]
[BlackElo "2343"]
[Annotator "RC"]
[PlyCount "81"]
[EventDate "2024.12.27"]
[EventType "swiss"]
[EventCountry "GER"]
[SourceTitle "playchess.com"]
[Source "ChessBase"]
[SourceQuality "1"]
[TimeControl "40/5400+30:1800+30"]

1. d4 {[%emt 0:00:01]} Nf6 {[%emt 0:00:07]} 2. c4 {[%emt 0:00:05]} g6 {[%emt 0:00:05]} 3. Nc3 {[%emt 0:00:04]} Bg7 {[%emt 0:00:08]} 4. e4 {[%emt 0:00:08]} d6 {[%emt 0:00:06]} 5. Nf3 {[%emt 0:00:14]} O-O {[%emt 0:00:09]} 6. Be2 {[%emt 0:00:05]} e5 {[%emt 0:00:06]} 7. O-O {[%emt 0:00:10]} Nc6 {[%emt 0:00:07]} 8. d5 {[%emt 0:00:04]} Ne7 {[%emt 0:00:07]} 9. Bg5 {[%emt 0:00:06]} Ne8 {[%emt 0:02:52]} 10. Kh1 {[%emt 0:00:10]} f5 {[%emt 0:02:05]} 11. exf5 {[%emt 0:00:38]} gxf5 {[%emt 0:00:34]} 12. Qd2 {[%emt 0:00:27]} Nf6 {[%emt 0:02:39]} 13. Nh4 {[%emt 0:00:18]} Ng6 {[%emt 0:17:44]} 14. Nxg6 {[%emt 0:00:33]} hxg6 {[%emt 0:04:43]} 15. f3 {[%emt 0:00:04]} Qe8 {[%emt 0:04:24]} 16. a4 {[%emt 0:01:16]} a5 {[%emt 0:02:33]} 17. c5 {[%emt 0:05:28]} dxc5 {[%emt 0:11:35]} 18. Bc4 {[%emt 0:01:22]} Qf7 {[%emt 0:04:02]} 19. Nb5 {[%emt 0:03:27]} c6 {[%emt 0:14:53]} 20. Nd6 {[%emt 0:01:47]} Qc7 {[%emt 0:00:05]} 21. Nxf5 {[%emt 0:09:07]} cxd5 {[%emt 0:00:30]} 22. Bxd5+ {[%emt 0:01:51]} Kh7 {[%emt 0:04:42]} 23. Nxg7 {[%emt 0:01:18]} Qxg7 {[%emt 0:00:04]} 24. Bc4 {[%emt 0:00:13]} Qd7 {[%emt 0:05:08]} 25. Qe2 {[%emt 0:02:54]} Qf5 {[%emt 0:01:32]} 26. Be3 {[%emt 0:00:21]} b6 {[%emt 0:01:24]} 27. Rad1 {[%emt 0:13:28]} Be6 {[%emt 0:03:09]} 28. g4 {[%emt 0:08:32]} Bxc4 {[%emt 0:00:22]} 29. Qxc4 {[%emt 0:00:05]} Qc8 {[%emt 0:00:23]} 30. Rd6 {[%emt 0:00:31]} Rb8 {[%emt 0:05:23]} 31. Bg5 {[%emt 0:03:40]} Kg7 {[%emt 0:02:23]} 32. Rfd1 {[%emt 0:07:16]} Rb7 {[%emt 0:02:15]} 33. Bxf6+ {[%emt 0:01:39]} Rxf6 {[%emt 0:00:06]} 34. Rxf6 {[%emt 0:00:29]} Kxf6 {[%emt 0:00:01]} 35. Rd6+ {[%emt 0:00:08]} Kg7 {[%emt 0:00:37]} 36. Qe4 {[%emt 0:00:08]} Rf7 {[%emt 0:01:33]} 37. Qxg6+ {[%emt 0:02:02]} Kf8 {[%emt 0:00:02]} 38. Qg5 {[%emt 0:01:08]} Re7 {[%emt 0:01:53]} 39. Rg6 {[%emt 0:00:19]} Qd7 {[%emt 0:01:03]} 40. Rg8+ {[%emt 0:00:06]} Kf7 {[%emt 0:00:07]} 41. Qg6# {[%emt 0:30:40]} 1-0

[Event "LEM Niedersachsen-Meister 2025"]
[Site "Verden"]
[Date "2025.01.05"]
[Round "7.3"]
[White "Abel, Dennes"]
[Black "Lammers, Markus"]
[Result "0-1"]
[ECO "A06"]
[WhiteElo "2381"]
[BlackElo "2304"]
[Annotator "TA"]
[PlyCount "92"]
[EventDate "2024.12.27"]
[EventType "swiss"]
[EventCountry "GER"]
[SourceTitle "playchess.com"]
[Source "ChessBase"]
[SourceQuality "1"]
[TimeControl "40/5400+30:1800+30"]

{[%evp 15,92,0,19,0,0,0,0,0,3,0,0,1,16,4,14,20,19,30,14,7,6,0,0,0,29,11,14,21,43,30,35,21,52,39,39,42,78,45,38,9,20,0,0,0,0,0,12,0,0,0,0,-208,-205,-225,-227,-264,-257,-327,-328,-379,-365,-448,-448,-435,-408,-466,-462,-786,-745,-897,-714,-820,-948,-1039,-1021,-989,-972,-913,-881]} 1. Nf3 {[%emt 0:00:04]} d5 {[%emt 0:00:20]} 2. e3 {[%emt 0:00:16]} Nf6 {[%emt 0:00:36]} 3. b3 {[%emt 0:01:07]} g6 {[%emt 0:01:46]} 4. Bb2 {[%emt 0:01:01]} Bg7 {[%emt 0:00:06]} 5. c4 {[%emt 0:00:30]} O-O {[%emt 0:01:56]} 6. cxd5 {[%emt 0:07:54]} Qxd5 {[%emt 0:01:32]} 7. Be2 {[%emt 0:10:31]} c5 {[%emt 0:04:08]} 8. Nc3 {[%emt 0:02:09]} Qd8 {[%emt 0:09:57]} 9. Na4 {[%emt 0:10:51]} b6 {[%emt 0:04:35]} 10. d4 {[%emt 0:02:18]} cxd4 {[%emt 0:02:44]} 11. Nxd4 {[%emt 0:04:14]} Bb7 {[%emt 0:01:40]} 12. Bf3 {[%emt 0:02:58]} Bxf3 {[%emt 0:03:24]} 13. Qxf3 {[%emt 0:00:38]} (13. Nxf3 Qxd1+ 14. Rxd1 Rc8 15. Nc3) 13... Qd5 {[%emt 0:00:06]} 14. Rc1 {[%emt 0:15:24]} Nbd7 {[%emt 0:12:25]} (14... Qxf3 {simplifies} 15. Nxf3 Nbd7 16. Ke2 Rfc8) 15. Nc6 {[%emt 0:06:02]} Rfe8 {[%emt 0:01:06]} 16. Qxd5 {[%emt 0:02:10]} Nxd5 {[%emt 0:00:03]} 17. Bxg7 {[%emt 0:00:06]} Kxg7 {[%emt 0:00:09]} 18. Ke2 {[%emt 0:01:40]} Rec8 {[%emt 0:11:48]} 19. Rhd1 {[%emt 0:05:24]} e6 {[%emt 0:02:11]} 20. e4 {[%emt 0:06:36]} N5f6 {[%emt 0:02:20][%cal Oc8c7]} 21. f3 {[%emt 0:01:31]} Kf8 {[%emt 0:11:44]} 22. Nb2 {[%emt 0:03:03]} Rc7 {[%emt 0:01:12]} 23. Nd3 {[%emt 0:00:15]} Ke8 {[%emt 0:02:17]} 24. b4 {[%emt 0:01:13][%cal Bb3b4,Bb4b5][%mdl 32]} a6 {[%emt 0:01:36]} 25. a4 {[%emt 0:01:27]} Ng8 {[%emt 0:02:10]} 26. Nde5 {[%emt 0:02:46]} Ngf6 {[%emt 0:03:41][%cal Bg8f6,Bf6d7,Bd7c5][%mdl 32]} 27. Nxd7 {[%emt 0:01:26]} (27. Nxf7 $5 Rxc6 (27... Kxf7 28. Nd8+ Rxd8 29. Rxc7 $16) 28. Rxc6 Kxf7 29. Rdd6 $16) 27... Nxd7 {[%emt 0:00:17]} 28. b5 {[%emt 0:04:11]} Rcc8 {[%emt 0:10:56]} 29. Ke3 {[%emt 0:01:10]} Nc5 {[%emt 0:01:27]} 30. Rc4 {[%emt 0:00:35]} f6 {[%emt 0:01:25]} 31. e5 {[%emt 0:03:14]} axb5 {[%emt 0:02:15]} 32. axb5 {[%emt 0:00:01]} Ra3+ {[%emt 0:00:55]} 33. Kf2 $2 {[%emt 0:00:46]} (33. Ke2 $11 {and White stays safe.} fxe5 34. Nxe5) 33... Nd3+ $19 {[%emt 0:01:05]} 34. Rxd3 {[%emt 0:02:26]} Rxd3 {[%emt 0:00:02]} 35. exf6 {[%emt 0:00:10][%mdl 4096] Endgame KRR-KRN} Rd5 {[%emt 0:00:55]} 36. Rb4 {[%emt 0:01:43]} Kf7 {[%emt 0:00:24]} 37. Kg3 {[%emt 0:00:34]} Ra8 {[%emt 0:00:51]} ({Don't play} 37... Kxf6 38. Rf4+ Rf5 39. Rb4 $19) 38. Rh4 {[%emt 0:00:32]} h5 {[%emt 0:00:33]} (38... Kxf6 39. Rxh7 Rg5+ (39... Rxb5 $2 40. h4 $19) 40. Kh3 Rxb5 41. Rh4 $19) 39. Re4 {[%emt 0:00:21]} Rxb5 {[%emt 0:01:40]} ({Weaker is} 39... Kxf6 40. Rf4+ Rf5 41. Rxf5+ exf5 42. Kh3) 40. Ne5+ {[%emt 0:00:39]} Kxf6 {[%emt 0:00:25]} 41. f4 {[%emt 0:30:12]} (41. Nd7+ $142 Kf7 42. Ne5+ Kg7 43. h4) 41... Ra2 {[%emt 0:10:51]} 42. Nf3 {[%emt 0:00:00]} Rb3 {[%emt 0:02:36] Strongly threatening ...Rbb2.} 43. Rc4 {[%emt 0:00:00]} Rbb2 {[%emt 0:02:34]} 44. Nh4 {[%emt 0:00:00]} b5 {[%emt 0:00:55]} 45. Rc8 {[%emt 0:00:00]} b4 {[%emt 0:00:17]} 46. Rf8+ {[%emt 0:00:00]} Kg7 {[%emt 0:00:08]} 0-1

[Event "LEM Niedersachsen-Meister 2025"]
[Site "Verden"]
[Date "2025.01.05"]
[Round "7.4"]
[White "Riemay, David"]
[Black "Knuedel, Torben"]
[Result "1/2-1/2"]
[ECO "C58"]
[WhiteElo "2243"]
[BlackElo "2308"]
[Annotator "TA"]
[PlyCount "150"]
[EventDate "2024.12.27"]
[EventType "swiss"]
[EventCountry "GER"]
[SourceTitle "playchess.com"]
[Source "ChessBase"]
[SourceQuality "1"]
[TimeControl "40/5400+30:1800+30"]

{[%evp 14,150,12,19,40,40,30,33,43,48,31,50,79,68,64,66,54,81,77,53,90,84,77,44,137,137,128,100,106,103,132,118,130,125,128,120,145,87,172,168,165,166,202,146,149,142,139,139,170,120,148,148,150,141,145,153,141,150,382,383,370,122,122,122,122,122,167,123,133,86,116,88,109,79,79,79,80,72,72,72,72,62,62,0,72,62,65,62,79,62,82,62,62,62,62,0,62,58,58,43,46,46,54,45,42,57,62,35,35,28,35,28,28,27,34,35,35,35,35,35,35,35,35,29,29,0,0,0,0,0,0,0,0,0,0,0,0,0,0]} 1. e4 {[%emt 0:00:02]} e5 {[%emt 0:04:41]} 2. Nf3 {[%emt 0:00:21]} Nc6 {[%emt 0:00:06]} 3. Bc4 {[%emt 0:00:06]} Nf6 {[%emt 0:00:05]} 4. Ng5 {[%emt 0:00:09]} d5 {[%emt 0:00:06]} 5. exd5 {[%emt 0:00:06]} Na5 {[%emt 0:00:06]} 6. Bb5+ {[%emt 0:00:15]} c6 {[%emt 0:00:07]} 7. dxc6 {[%emt 0:00:07]} bxc6 {[%emt 0:00:06]} 8. Bd3 {[%emt 0:00:07]} Nd5 {[%emt 0:03:15]} 9. h4 {[%emt 0:00:50][%cal Od1f3]} (9. Nxh7 $2 Nf4 10. Be4 Rxh7 $19) 9... g6 {[%emt 0:19:39]} 10. Nc3 {[%emt 0:08:20]} Bg7 {[%emt 0:15:39] White is slightly better.} 11. Nxd5 {[%emt 0:09:25]} cxd5 {[%emt 0:00:45]} 12. Bb5+ $40 {[%emt 0:00:08][%mdl 128] White mounts an attack.} Bd7 {[%emt 0:00:10] [#]} 13. Qf3 $1 {[%emt 0:00:34][%csl Gg5,LRd5,LRf7][%cal Rf3f7]} O-O {[%emt 0:00:08]} 14. Qxd5 {[%emt 0:00:15]} Bxb5 {[%emt 0:00:30]} 15. Qxb5 {[%emt 0:00:08]} Rc8 {[%emt 0:03:44]} 16. c3 {[%emt 0:07:28]} h6 {[%emt 0:13:07]} 17. Ne4 {[%emt 0:08:07]} f5 {[%emt 0:14:26]} 18. b4 {[%emt 0:16:42]} fxe4 {[%emt 0:02:09]} ({Black should try} 18... Nc4 $14 19. Nc5 Qd5) 19. bxa5 $16 {[%emt 0:00:17]} Kh7 {[%emt 0:03:33][%cal Oe4e3]} 20. Qe2 {[%emt 0:01:26]} Qxa5 {[%emt 0:04:25][%cal Oc8c3]} 21. h5 {[%emt 0:01:25] hxg6+ would now be deadly.} (21. Qxe4 Rf4 22. Qe3 Rcc4 $17) 21... gxh5 {[%emt 0:02:04]} 22. Qxe4+ {[%emt 0:02:45]} Kh8 {[%emt 0:00:01]} 23. Rxh5 {[%emt 0:07:05]} Qb6 {[%emt 0:00:12]} 24. Qe2 {[%emt 0:06:57]} (24. Rf5 Rxf5 25. Qxf5 Rf8 $15) 24... Qg6 {[%emt 0:01:02] [#]} 25. Kf1 {[%emt 0:03:49]} ({White should play} 25. g3 $1) 25... Rf4 {[%emt 0:01:47]} (25... Rc4 $16 26. d3 Rxc3) 26. d3 $18 {[%emt 0:06:47]} Rg4 {[%emt 0:00:50] [#]} 27. Rh2 {[%emt 0:00:05]} e4 {[%emt 0:04:02]} 28. dxe4 {[%emt 0:01:24]} Rxe4 {[%emt 0:00:09]} 29. Be3 {[%emt 0:01:24]} Rxc3 {[%emt 0:00:41]} 30. Rd1 {[%emt 0:00:14]} Re6 {[%emt 0:00:50]} 31. Qh5 {[%emt 0:05:14]} ({Better is} 31. Kg1 $18) 31... Ra3 {[%emt 0:04:16]} 32. Qd5 {[%emt 0:04:20]} Qe4 {[%emt 0:02:35] Prevents Bd4} 33. Qxe4 {[%emt 0:03:56]} Rxe4 {[%emt 0:00:01]} 34. Rd8+ {[%emt 0:00:12]} Kh7 {[%emt 0:00:12]} 35. Rd7 {[%emt 0:00:04]} Re6 {[%emt 0:01:08]} (35... Kg8 $16 36. Bxh6 (36. Rxa7 Rexe3 37. Rxg7+ Kxg7 $14) 36... Bf6) 36. Bd4 {[%emt 0:01:48]} ({Less strong is} 36. Rxa7 Rexe3 37. Rxg7+ Kxg7 $14) 36... Rg6 {[%emt 0:00:14]} 37. Rxa7 $2 {[%emt 0:02:41]} (37. Rh4 $18) 37... Rxa7 $16 {[%emt 0:00:13]} 38. Bxa7 $18 {[%emt 0:00:03][%mdl 4096] Endgame. KRB-KRB} Ra6 {[%emt 0:00:09][%csl LRa2,LRa7]} 39. Be3 {[%emt 0:00:15]} Ra5 {[%emt 0:02:47] [#]} 40. a3 $1 Rxa3 {[%emt 0:00:00]} 41. Rh4 {[%emt 0:30:55]} (41. g4 $142) 41... Ra6 {[%emt 0:29:13]} 42. Ke2 {[%emt 0:00:00]} Ra5 {[%emt 0:00:00]} 43. Kf3 {[%emt 0:00:00]} h5 {[%emt 0:00:00]} 44. Rc4 {[%emt 0:00:00]} Kg6 {[%emt 0:00:00]} 45. Rc6+ {[%emt 0:00:00]} Kf5 {[%emt 0:00:00]} 46. Rc7 {[%emt 0:00:00]} Kg6 {[%emt 0:00:00]} 47. Ke4 {[%emt 0:00:00]} Ra4+ {[%emt 0:00:00]} 48. Kf3 {[%emt 0:00:00]} Ra5 $1 {[%emt 0:00:00]} 49. g3 {[%emt 0:00:00]} Rb5 {[%emt 0:00:00]} 50. Kg2 {[%emt 0:00:00]} Ra5 {[%emt 0:00:00]} 51. Kh3 {[%emt 0:00:00] White is more active.} Rb5 {[%emt 0:00:00]} 52. Rc6+ {[%emt 0:00:00]} Kf7 {[%emt 0:00:00]} 53. Bf4 {[%emt 0:00:00]} Bf6 {[%emt 0:00:00]} 54. Be3 {[%emt 0:00:00]} Bg7 $1 {[%emt 0:00:00]} 55. f4 {[%emt 0:01:25]} Bf6 {[%emt 0:00:00]} 56. Ra6 {[%emt 0:00:39]} Rb3 {[%emt 0:00:00]} 57. Bf2 {[%emt 0:00:03]} Rb5 {[%emt 0:00:00]} 58. Rc6 {[%emt 0:01:44]} Rd5 {[%emt 0:00:00]} 59. Be1 {[%emt 0:01:45]} Rd3 {[%emt 0:00:00]} 60. Rc5 {[%emt 0:01:56]} Re3 {[%emt 0:02:41]} 61. Bf2 {[%emt 0:01:33]} Re2 {[%emt 0:00:37]} 62. Rc7+ {[%emt 0:01:25]} Kg6 {[%emt 0:01:06]} 63. Bg1 {[%emt 0:00:20]} Rd2 {[%emt 0:00:43]} 64. Rc6 {[%emt 0:00:50]} Kf7 {[%emt 0:00:53]} 65. Ra6 {[%emt 0:00:49]} Rd3 {[%emt 0:00:45]} 66. Bf2 {[%emt 0:01:12]} Rd2 {[%emt 0:00:42]} 67. Bc5 {[%emt 0:00:45]} Rd3 {[%emt 0:00:57]} 68. Kg2 {[%emt 0:00:21]} h4 {[%emt 0:01:08]} 69. g4 {[%emt 0:01:59]} Rg3+ {[%emt 0:00:36] The position is equal.} 70. Kh2 {[%emt 0:00:39]} Rxg4 {[%emt 0:00:17]} 71. f5 {[%emt 0:00:31]} Rf4 {[%emt 0:03:18]} 72. Ra7+ {[%emt 0:00:03]} Ke8 {[%emt 0:00:19]} 73. Ra8+ {[%emt 0:00:17]} Kd7 {[%emt 0:00:25]} 74. Ra7+ {[%emt 0:00:06]} Kc8 {[%emt 0:00:38]} 75. Ra8+ {[%emt 0:00:20]} Kd7 {[%emt 0:00:21] Blacks defense is rewarded with a draw.   Weighted Error Value: White=0.16 (very precise) /Black=0.18 (very precise) .  Loses game:     	---       	Black=1      Missed win:     	White=1     	---        Mistake:       	White=3     	Black=2      Inaccurate:     	White=3     	Black=4      OK:         	White=27    	Black=28     Best:        	White=2     	Black=2      Strong:       	White=1     	Black=2} 1/2-1/2

[Event "LEM Niedersachsen-Meister 2025"]
[Site "Verden"]
[Date "2025.01.05"]
[Round "7.5"]
[White "Lichtmannecker, Daniel"]
[Black "Voege, Tobias"]
[Result "0-1"]
[ECO "C01"]
[WhiteElo "2171"]
[BlackElo "2292"]
[Annotator "TA"]
[PlyCount "68"]
[EventDate "2024.12.27"]
[EventType "swiss"]
[EventCountry "GER"]
[SourceTitle "playchess.com"]
[Source "ChessBase"]
[SourceQuality "1"]
[TimeControl "40/5400+30:1800+30"]

{[%evp 12,68,14,8,10,12,7,7,6,6,8,5,11,0,9,4,0,0,19,0,0,0,19,8,6,8,5,6,61,-327,-314,-267,-305,-325,-313,-358,-362,-378,-381,-379,-366,-391,-405,-464,-408,-414,-422,-414,-428,-462,-445,-461,-451,-448,-468,-712,-718,-29998,-29999]} 1. e4 {[%emt 0:10:46]} e6 {[%emt 0:00:12]} 2. d4 {[%emt 0:00:28]} d5 {[%emt 0:00:06]} 3. exd5 {[%emt 0:00:06]} exd5 {[%emt 0:00:04]} 4. Bd3 {[%emt 0:00:10]} Nc6 {[%emt 0:00:20]} 5. c3 {[%emt 0:00:11]} Bd6 {[%emt 0:00:36]} 6. Qf3 {[%emt 0:00:15]} Nf6 {[%emt 0:10:06]} 7. Bg5 {[%emt 0:00:23]} Bg4 {[%emt 0:05:39]} 8. Qxg4 {[%emt 0:00:10]} (8. Bxf6 $2 Bxf3 9. Bxd8 Bxg2 $19) 8... Nxg4 {[%emt 0:00:07]} 9. Bxd8 {[%emt 0:00:06]} Nxd8 {[%emt 0:04:07]} 10. Nf3 {[%emt 0:01:24]} Ne6 {[%emt 0:03:12]} 11. O-O {[%emt 0:01:08]} O-O {[%emt 0:03:44]} 12. Re1 {[%emt 0:03:01]} Rfe8 {[%emt 0:03:42]} 13. Nbd2 {[%emt 0:02:34]} g6 {[%emt 0:06:14]} 14. g3 {[%emt 0:07:36]} f5 {[%emt 0:11:24]} 15. Rad1 {[%emt 0:21:09]} Kg7 {[%emt 0:01:56]} 16. Kg2 {[%emt 0:01:37]} h6 {[%emt 0:04:37]} 17. Ne5 {[%emt 0:05:10]} Bxe5 {[%emt 0:09:45]} 18. dxe5 {[%emt 0:00:17]} Nc5 $1 {[%emt 0:00:15][%csl LRd3,LRe5] Excellent horsemanship.} 19. Nf3 {[%emt 0:09:38] and Bc2 should not be overlooked} Ne4 {[%emt 0:06:52]} (19... Nd7 $1 $11) 20. h3 $2 {[%emt 0:01:43][%mdl 8192]} (20. Bc2 $14 {was the only good move.} c6 21. Re2) 20... Ngxf2 $19 {[%emt 0:01:06]} (20... Nxe5 21. Nxe5 Rxe5 22. f3 $16) 21. Bxe4 {[%emt 0:00:52]} Nxd1 {[%emt 0:03:31]} (21... Nxe4 22. Rxd5 Re7 23. a4 $11) 22. Bxd5 {[%emt 0:00:07]} Nxb2 {[%emt 0:06:40]} 23. Bxb7 {[%emt 0:07:22][%cal Oe1b1]} Rad8 {[%emt 0:01:54]} 24. Rb1 {[%emt 0:04:39]} Nc4 {[%emt 0:02:29]} 25. Rb5 {[%emt 0:01:09]} Ne3+ {[%emt 0:02:13]} 26. Kg1 {[%emt 0:01:31]} Rd1+ {[%emt 0:01:45]} 27. Kh2 {[%emt 0:03:16]} Rc1 {[%emt 0:02:46]} 28. Rc5 {[%emt 0:01:39]} Rc2+ {[%emt 0:00:15]} 29. Kh1 {[%emt 0:00:27]} Re7 {[%emt 0:00:40]} ({Don't take} 29... Rxa2 30. Rxc7+ Kf8 31. Nh4 $19) 30. Nd4 {[%emt 0:02:10]} Rxa2 {[%emt 0:00:40]} 31. Nc6 {[%emt 0:02:24]} Rd7 {[%emt 0:00:43]} 32. Nd4 {[%emt 0:00:41]} Nc2 {[%emt 0:03:23]} 33. Bc8 {[%emt 0:01:10] [#]} (33. e6 $142 Re7 34. Bc8) 33... Nxd4 $1 {[%emt 0:01:08]} 34. Bxd7 {[%emt 0:00:12]} (34. cxd4 Rxd4) 34... Nf3 {[%emt 0:00:05]} 0-1

[Event "LEM Niedersachsen-Meister 2025"]
[Site "Verden"]
[Date "2025.01.05"]
[Round "7.6"]
[White "Bargsten, Justus"]
[Black "Giorgadze, Giorgi Gel"]
[Result "1/2-1/2"]
[ECO "C10"]
[WhiteElo "2228"]
[BlackElo "2569"]
[Annotator "TA"]
[PlyCount "52"]
[EventDate "2024.12.27"]
[EventType "swiss"]
[EventCountry "GER"]
[SourceTitle "playchess.com"]
[Source "ChessBase"]
[SourceQuality "1"]
[TimeControl "40/5400+30:1800+30"]

{[%evp 12,52,37,35,29,20,27,17,26,22,29,20,37,41,40,38,48,50,51,21,83,44,35,0,0,-7,0,0,0,0,0,-29,0,0,0,-27,-32,-34,-31,-28,-30,-29,-10]} 1. e4 {[%emt 0:00:02]} e6 {[%emt 0:04:57]} 2. d4 {[%emt 0:00:02]} d5 {[%emt 0:00:18]} 3. Nc3 {[%emt 0:00:03]} dxe4 {[%emt 0:00:07]} 4. Nxe4 {[%emt 0:00:04]} Nd7 {[%emt 0:00:03]} 5. Nf3 {[%emt 0:00:08]} Ngf6 {[%emt 0:00:13]} 6. Nxf6+ {[%emt 0:00:02]} Nxf6 {[%emt 0:00:07]} 7. g3 {[%emt 0:00:05]} b6 {[%emt 0:00:05]} 8. Bb5+ {[%emt 0:00:04]} Bd7 {[%emt 0:00:51]} 9. a4 {[%emt 0:00:06]} a6 {[%emt 0:07:38]} 10. Be2 {[%emt 0:00:02]} Bc6 {[%emt 0:14:05]} 11. O-O {[%emt 0:00:02]} Bd6 {[%emt 0:00:05]} 12. Ne5 {[%emt 0:00:07]} Bxe5 {[%emt 0:04:22]} 13. dxe5 {[%emt 0:00:02]} Nd7 {[%emt 0:00:27][%cal Bf6d7,Bd7b8,Bb8c6][%mdl 32]} 14. f4 {[%emt 0:10:04]} Qe7 {[%emt 0:06:43]} 15. Be3 {[%emt 0:04:08] Against Qc5. Active counter play!} Rd8 {[%emt 0:00:40]} (15... a5 $11) 16. Qe1 {[%emt 0:02:29][%cal Oe1c3] and Qc3! should not be overlooked} ({Much worse is} 16. Bxa6 Nc5 17. Bd3 Nxd3 18. cxd3 Qd7 $15) 16... a5 {[%emt 0:06:53]} 17. Ra3 {[%emt 0:06:49]} O-O {[%emt 0:06:53]} 18. Bf2 {[%emt 0:13:04]} Nb8 {[%emt 0:07:14]} 19. g4 {[%emt 0:03:47]} Qb4 {[%emt 0:02:48]} 20. Qxb4 {[%emt 0:01:41]} axb4 {[%emt 0:00:09]} 21. Raa1 {[%emt 0:01:58]} Be4 {[%emt 0:07:37][%cal Ob8c6]} 22. Be1 {[%emt 0:01:33]} Nc6 {[%emt 0:01:14]} 23. c3 {[%emt 0:01:34] Dodges Nd4} b3 {[%emt 0:01:31]} 24. Kf2 {[%emt 0:04:29]} Bd3 {[%emt 0:03:24]} 25. Ra3 {[%emt 0:00:52]} Na5 {[%emt 0:01:54][%cal Og7g5]} 26. c4 {[%emt 0:01:05]} Bxc4 {[%emt 0:01:39]} 1/2-1/2